fUSD/lending_fUSD_20250105
["ID","MTS","AMOUNT","RATE_DAILY","PERIOD"]
[347677286,1736050268913,-597.0,0.0001195,2]
[347677287,1736050268922,-449.67357037,0.0001195,2]
[347677288,1736050268931,-186.62198899,0.0001195,2]
[347677289,1736050268942,-667.07,0.0001196,2]
[347677290,1736050268953,-9415.32637751,0.00011965,2]
[347677291,1736050268963,-308.95283809,0.00011965,2]
[347677292,1736050268972,-4611.09024336,0.00011965,2]
[347677293,1736050268982,-9415.32637751,0.00011966,2]
[347677294,1736050268991,-6548.42273022,0.00011967,2]
[347677295,1736050269000,-6548.42273022,0.00011967,2]
[347677296,1736050269009,-6548.42273022,0.00011969,2]
[347677297,1736050269020,-308.95283809,0.00011969,2]
[347677298,1736050269029,-19172.28161016,0.00011971,2]
[347677299,1736050269038,-3325.65745714,0.00011971,2]
[347677300,1736050269048,-3325.65745714,0.00011971,2]
[347677301,1736050269058,-200.0,0.00011971,2]
[347677302,1736050269067,-9294.89795644,0.00011972,2]
[347677303,1736050269076,-9294.89795644,0.00011972,2]
[347677304,1736050269086,-4611.09024336,0.00011972,2]
[347677305,1736050269096,-4611.09024336,0.00011973,2]
[347677306,1736050269106,-9589.9075516,0.00011973,2]
[347677307,1736050269115,-308.95283809,0.00011974,2]
[347677308,1736050269124,-9589.9075516,0.00011974,2]
[347677309,1736050269133,-6548.42273022,0.00011974,2]
[347677310,1736050269143,-3325.65745714,0.00011974,2]
[347677311,1736050269152,-6548.42273022,0.00011975,2]
[347677312,1736050269162,-308.95283809,0.00011976,2]
[347677313,1736050269171,-9415.32637751,0.00011978,2]
[347677314,1736050269181,-9294.89795644,0.0001198,2]
[347677315,1736050269191,-9294.89795644,0.0001198,2]
[347677316,1736050269201,-3325.65745714,0.00011981,2]
[347677317,1736050269210,-19172.28161016,0.00011981,2]
[347677318,1736050269220,-9415.32637751,0.00011981,2]
[347677319,1736050269230,-19172.28161016,0.00011983,2]
[347677320,1736050269240,-9294.89795644,0.00011983,2]
[347677321,1736050269249,-9294.89795644,0.00011984,2]
[347677322,1736050269258,-4611.09024336,0.00011984,2]
[347677323,1736050269267,-3325.65745714,0.00011984,2]
[347677324,1736050269277,-6548.42273022,0.00011986,2]
[347677325,1736050269287,-19172.28161016,0.00011987,2]
[347677326,1736050269296,-9415.32637751,0.00011987,2]
[347677327,1736050269305,-9589.9075516,0.00011988,2]
[347677328,1736050269315,-200.0,0.00011988,2]
[347677329,1736050269324,-200.0,0.00011988,2]
[347677330,1736050269334,-19172.28161016,0.00011989,2]
[347677331,1736050269343,-308.95283809,0.0001199,2]
[347677332,1736050269352,-9589.9075516,0.00011992,2]
[347677333,1736050269361,-4611.09024336,0.00011994,2]
[347677334,1736050269371,-9415.32637751,0.00011995,2]
[347677335,1736050269380,-150.0,0.00011995,2]
[347677336,1736050269389,-308.95283809,0.00011995,2]
[347677337,1736050269399,-19172.28161016,0.00011996,2]
[347677338,1736050269408,-4611.09024336,0.00011998,2]
[347677339,1736050269418,-9589.9075516,0.00011998,2]
[347677340,1736050269535,-3325.65745714,0.00011998,2]
[347677341,1736050269547,-9589.9075516,0.00011998,2]
[347677342,1736050269556,-352819.69937618,0.00011999,2]
[347677343,1736050269880,-1826.25917747,0.00011999,2]
[347677344,1736050269901,-500.0,0.00010407,2]
[347677345,1736050269912,-595.6062822,0.00011999,2]
[347677346,1736050269923,-3999.64712997,0.00011999,2]
[347677347,1736050269934,-3591.86537889,0.00011999,2]
[347677348,1736050269946,-372.80077324,0.00011999,2]
[347677349,1736050269958,-5589.9701285,0.00011999,2]
[347677350,1736050269970,-251.84622013,0.00011999,2]
[347677351,1736050269982,-8852.13878036,0.00011999,2]
[347677352,1736050269999,-234415.58929628,0.00011999,2]
[347677353,1736050270010,-307.71169007,0.00011999,2]
[347677354,1736050270022,-1469.6911387,0.00011999,2]
[347677355,1736050270039,-821.37766856,0.00011999,2]
[347677356,1736050270360,-626.4,0.00010133,2]
[347677357,1736050270370,-500.0,0.00010406,2]
[347677358,1736050270379,-500.0,0.00010407,2]
[347677359,1736050270388,-500.0,0.00010407,2]
[347677360,1736050270397,-500.0,0.00010681,2]
[347677361,1736050270407,-500.0,0.00010955,2]
[347677362,1736050270416,-500.0,0.00011229,2]
[347677363,1736050270425,-1105.648,0.00011357,2]
[347677364,1736050270434,-500.0,0.00011503,2]
[347677365,1736050270443,-500.0,0.00011777,2]
[347677366,1736050270452,-30526.83251778,0.00011999,2]
[347677367,1736050270501,-500.0,0.00010406,2]
[347677368,1736050270511,-500.0,0.00010407,2]
[347677369,1736050270520,-893.4059346,0.00011999,2]
[347677370,1736050270532,-12160.82910391,0.00011999,2]
[347677371,1736050270548,-322360.01229282,0.00011999,2]
[347677372,1736050270560,-16268.07293523,0.00011999,2]
[347677373,1736050270830,-500.0,0.00010133,2]
[347677374,1736050270840,-437.69234994,0.00010407,2]
[347677375,1736050270851,-62.30765006,0.00010407,2]
[347677376,1736050270860,-500.0,0.00010407,2]
[347677377,1736050270869,-390.10719794,0.00010407,2]
[347677378,1736050270882,-109.89280206,0.00010407,2]
[347677379,1736050270890,-507.63,0.00010681,2]
[347677380,1736050270899,-31022.24994963,0.00011999,2]
[347677381,1736050270910,-546.006,0.00011999,2]
[347677382,1736050270927,-719.95798759,0.00011999,2]
[347677383,1736050270938,-912.34615092,0.00011999,2]
[347677384,1736050270948,-6700.0,0.00011999,2]
[347677385,1736050270960,-23506.61169528,0.00011999,2]
[347677386,1736050271090,-59857.728561,0.00011999,2]
[347677387,1736050271102,-356.20926424,0.00011999,2]
[347677388,1736050271113,-378.78294716,0.00011999,2]
[347677389,1736050271124,-813.5,0.00011999,2]
[347677390,1736050271136,-362.02612854,0.00011999,2]
[347677393,1736051227019,-28000.0,8e-05,2]
[347677394,1736051227043,-883.57,8.219e-05,2]
[347677395,1736051227066,-144942.58028753,9e-05,2]
[347677396,1736051227089,-23900.0,9.402e-05,2]
[347677397,1736051227114,-184.65,9.456e-05,2]
[347677398,1736051227139,-150.0,9.741e-05,2]
[347677399,1736051227161,-10520.66380294,9.8e-05,2]
[347677400,1736051227184,-250.0,9.974e-05,2]
[347677401,1736051227206,-3117.31299145,0.0001,2]
[347677402,1736051227231,-1048.2243975,0.0001,2]
[347677403,1736051227253,-35502.23377028,0.0001,2]
[347677404,1736051227277,-1496.4,0.00010002,2]
[347677405,1736051227299,-1474.29,0.00010007,2]
[347677406,1736051227324,-1490.7,0.00010012,2]
[347677407,1736051227347,-1490.68,0.00010018,2]
[347677408,1736051227368,-150.99,0.00010018,2]
[347677409,1736051227389,-7897.85,0.00010018,2]
[347677410,1736051227411,-463.44,0.00010018,2]
[347677411,1736051227432,-999.99,0.00010018,2]
[347677412,1736051227454,-1506.54,0.00010026,2]
[347677413,1736051227475,-9999.99,0.00010026,2]
[347677414,1736051227496,-456.53,0.00010026,2]
[347677415,1736051227520,-150.99,0.00010026,2]
[347677416,1736051227546,-1491.13,0.00010033,2]
[347677417,1736051227570,-1526.72,0.00010033,2]
[347677418,1736051227593,-1481.48,0.00010133,2]
[347677419,1736051227617,-1489.35,0.00010133,2]
[347677420,1736051227640,-1508.43,0.00010133,2]
[347677421,1736051227661,-1483.89,0.00010133,2]
[347677422,1736051227683,-1483.44,0.00010133,2]
[347677423,1736051227706,-1484.08,0.00010133,2]
[347677424,1736051227729,-1499.75,0.00010133,2]
[347677425,1736051227751,-1470.09,0.00010133,2]
[347677426,1736051227772,-1059.98443649,0.00010133,2]
[347677427,1736051227794,-403.56,0.00010133,2]
[347677428,1736051227816,-500.0,0.00010133,2]
[347677429,1736051227839,-500.0,0.00010133,2]
[347677430,1736051227861,-159.85,0.00010133,2]
[347677431,1736051227882,-406.27816165,0.00010133,2]
[347677432,1736051227903,-500.0,0.00010133,2]
[347677433,1736051227924,-500.0,0.00010133,2]
[347677434,1736051227945,-1292.16,0.00010133,2]
[347677435,1736051227967,-636.16,0.00010133,2]
[347677436,1736051227993,-500.0,0.00010133,2]
[347677437,1736051228017,-500.0,0.00010133,2]
[347677438,1736051228040,-500.0,0.00010133,2]
[347677439,1736051228063,-500.0,0.00010133,2]
[347677440,1736051228086,-500.0,0.00010133,2]
[347677441,1736051228109,-500.0,0.00010133,2]
[347677442,1736051228132,-567.18,0.00010133,2]
[347677443,1736051228155,-500.0,0.00010133,2]
[347677444,1736051228178,-500.0,0.00010133,2]
[347677445,1736051228201,-500.0,0.00010133,2]
[347677446,1736051228225,-533.84,0.00010133,2]
[347677447,1736051228249,-500.0,0.00010133,2]
[347677448,1736051228272,-742.63,0.00010133,2]
[347677449,1736051228296,-500.0,0.00010133,2]
[347677450,1736051228318,-500.0,0.00010133,2]
[347677451,1736051228340,-869.58,0.00010133,2]
[347677452,1736051228362,-500.0,0.00010133,2]
[347677453,1736051228384,-500.0,0.00010133,2]
[347677454,1736051228406,-1069.16,0.00010133,2]
[347677455,1736051228429,-742.45,0.00010133,2]
[347677456,1736051228452,-1000.0,0.00010284,2]
[347677457,1736051228475,-500.0,0.00010405,2]
[347677458,1736051228497,-500.0,0.00010405,2]
[347677459,1736051228520,-500.0,0.00010405,2]
[347677460,1736051228545,-1820.58,0.00010405,2]
[347677461,1736051228567,-562.23,0.00010405,2]
[347677462,1736051228590,-2054.34,0.00010405,2]
[347677463,1736051228618,-1370.28,0.00010405,2]
[347677464,1736051228641,-500.0,0.00010405,2]
[347677465,1736051228663,-1120.71,0.00010405,2]
[347677466,1736051228686,-500.0,0.00010405,2]
[347677467,1736051228708,-606.96,0.00010405,2]
[347677468,1736051228731,-1347.54,0.00010405,2]
[347677469,1736051228754,-500.0,0.00010405,2]
[347677470,1736051228776,-500.0,0.00010405,2]
[347677471,1736051228798,-754.61,0.00010405,2]
[347677472,1736051228820,-500.0,0.00010405,2]
[347677473,1736051228842,-500.0,0.00010405,2]
[347677474,1736051228864,-528.74,0.00010405,2]
[347677475,1736051228886,-1238.95,0.00010405,2]
[347677476,1736051228907,-547.29,0.00010405,2]
[347677477,1736051228929,-730.87,0.00010405,2]
[347677478,1736051228950,-395.88319079,0.00010405,2]
[347677479,1736051228972,-500.0,0.00010406,2]
[347677480,1736051228994,-500.0,0.00010406,2]
[347677481,1736051229016,-500.0,0.00010406,2]
[347677482,1736051229039,-500.0,0.00010406,2]
[347677483,1736051229060,-500.0,0.00010406,2]
[347677484,1736051229081,-500.0,0.00010406,2]
[347677485,1736051229102,-500.0,0.00010406,2]
[347677486,1736051229123,-500.0,0.00010406,2]
[347677487,1736051229144,-500.0,0.00010406,2]
[347677488,1736051229165,-500.0,0.00010406,2]
[347677489,1736051229190,-500.0,0.00010406,2]
[347677490,1736051229213,-500.0,0.00010406,2]
[347677491,1736051229240,-500.0,0.00010406,2]
[347677492,1736051229471,-500.0,0.00010406,2]
[347677493,1736051229494,-500.0,0.00010406,2]
[347677494,1736051229517,-500.0,0.00010406,2]
[347677495,1736051229539,-500.0,0.00010406,2]
[347677496,1736051229561,-500.0,0.00010406,2]
[347677497,1736051229582,-500.0,0.00010406,2]
[347677498,1736051229604,-500.0,0.00010406,2]
[347677499,1736051229627,-500.0,0.00010406,2]
[347677500,1736051229648,-500.0,0.00010406,2]
[347677501,1736051229670,-500.0,0.00010406,2]
[347677502,1736051229692,-500.0,0.00010406,2]
[347677503,1736051229713,-500.0,0.00010406,2]
[347677504,1736051229734,-568.28,0.00010406,2]
[347677505,1736051229755,-500.0,0.00010406,2]
[347677506,1736051229776,-500.0,0.00010406,2]
[347677507,1736051229799,-500.0,0.00010406,2]
[347677508,1736051229821,-549.2,0.00010406,2]
[347677509,1736051229841,-500.0,0.00010406,2]
[347677510,1736051229875,-500.0,0.00010406,2]
[347677511,1736051229900,-500.0,0.00010406,2]
[347677512,1736051229922,-500.0,0.00010406,2]
[347677513,1736051229944,-500.0,0.00010406,2]
[347677514,1736051229967,-500.0,0.00010406,2]
[347677515,1736051229990,-500.0,0.00010406,2]
[347677516,1736051230012,-500.0,0.00010406,2]
[347677517,1736051230037,-500.0,0.00010406,2]
[347677518,1736051230059,-500.0,0.00010406,2]
[347677519,1736051230081,-500.0,0.00010406,2]
[347677520,1736051230103,-500.0,0.00010406,2]
[347677521,1736051230125,-500.0,0.00010406,2]
[347677522,1736051230146,-500.0,0.00010406,2]
[347677523,1736051230168,-500.0,0.00010406,2]
[347677524,1736051230191,-532.42,0.00010406,2]
[347677525,1736051230213,-500.0,0.00010406,2]
[347677526,1736051230237,-500.0,0.00010406,2]
[347677527,1736051230258,-500.0,0.00010406,2]
[347677528,1736051230280,-500.0,0.00010406,2]
[347677529,1736051230303,-500.0,0.00010406,2]
[347677530,1736051230325,-500.0,0.00010406,2]
[347677531,1736051230347,-500.0,0.00010406,2]
[347677532,1736051230369,-500.0,0.00010406,2]
[347677533,1736051230390,-500.0,0.00010406,2]
[347677534,1736051230411,-500.0,0.00010406,2]
[347677535,1736051230438,-500.0,0.00010406,2]
[347677536,1736051230460,-500.0,0.00010406,2]
[347677537,1736051230483,-500.0,0.00010406,2]
[347677538,1736051230507,-500.0,0.00010406,2]
[347677539,1736051230532,-500.0,0.00010406,2]
[347677540,1736051230556,-484.0175084,0.00010406,2]
[347677541,1736051230579,-500.0,0.00010406,2]
[347677542,1736051230607,-500.0,0.00010406,2]
[347677543,1736051230631,-500.0,0.00010406,2]
[347677544,1736051230654,-590.41,0.00010406,2]
[347677545,1736051230677,-500.0,0.00010406,2]
[347677546,1736051230700,-500.0,0.00010406,2]
[347677547,1736051230724,-514.06,0.00010406,2]
[347677548,1736051230746,-500.0,0.00010406,2]
[347677549,1736051230769,-500.0,0.00010406,2]
[347677550,1736051230792,-500.0,0.00010406,2]
[347677551,1736051230815,-500.0,0.00010406,2]
[347677552,1736051230837,-500.0,0.00010406,2]
[347677553,1736051230860,-500.0,0.00010406,2]
[347677554,1736051230882,-500.0,0.00010406,2]
[347677555,1736051230904,-500.0,0.00010406,2]
[347677556,1736051230926,-500.0,0.00010406,2]
[347677557,1736051230947,-500.0,0.00010406,2]
[347677558,1736051230969,-500.0,0.00010406,2]
[347677559,1736051230995,-500.0,0.00010406,2]
[347677560,1736051231018,-500.0,0.00010406,2]
[347677561,1736051231041,-500.0,0.00010406,2]
[347677562,1736051231063,-500.0,0.00010406,2]
[347677563,1736051231086,-500.0,0.00010406,2]
[347677564,1736051231108,-500.0,0.00010406,2]
[347677565,1736051231131,-500.0,0.00010406,2]
[347677566,1736051231155,-500.0,0.00010406,2]
[347677567,1736051231177,-500.0,0.00010406,2]
[347677568,1736051231200,-500.0,0.00010406,2]
[347677569,1736051231224,-500.0,0.00010406,2]
[347677570,1736051231246,-500.0,0.00010406,2]
[347677571,1736051231270,-500.0,0.00010406,2]
[347677572,1736051231292,-500.0,0.00010406,2]
[347677573,1736051231314,-500.0,0.00010406,2]
[347677574,1736051231336,-500.0,0.00010406,2]
[347677575,1736051231357,-500.0,0.00010406,2]
[347677576,1736051231383,-500.0,0.00010406,2]
[347677577,1736051231406,-500.0,0.00010406,2]
[347677578,1736051231428,-529.44,0.00010406,2]
[347677579,1736051231450,-500.0,0.00010406,2]
[347677580,1736051231472,-500.0,0.00010406,2]
[347677581,1736051231495,-500.0,0.00010406,2]
[347677582,1736051231517,-500.0,0.00010406,2]
[347677583,1736051231539,-500.0,0.00010406,2]
[347677584,1736051231563,-500.0,0.00010406,2]
[347677585,1736051231585,-500.0,0.00010406,2]
[347677586,1736051231607,-500.0,0.00010406,2]
[347677587,1736051231630,-569.11,0.00010406,2]
[347677588,1736051231652,-500.0,0.00010406,2]
[347677589,1736051231680,-505.64,0.00010406,2]
[347677590,1736051231703,-500.0,0.00010406,2]
[347677591,1736051231727,-639.23,0.00010406,2]
[347677592,1736051231749,-500.0,0.00010406,2]
[347677593,1736051231772,-500.0,0.00010406,2]
[347677594,1736051231796,-500.0,0.00010406,2]
[347677595,1736051231820,-500.0,0.00010406,2]
[347677596,1736051231843,-500.0,0.00010406,2]
[347677597,1736051231865,-579.23,0.00010406,2]
[347677598,1736051231887,-500.0,0.00010406,2]
[347677599,1736051231909,-500.0,0.00010406,2]
[347677600,1736051231932,-500.0,0.00010406,2]
[347677601,1736051231953,-500.0,0.00010406,2]
[347677602,1736051231974,-500.0,0.00010406,2]
[347677603,1736051231995,-500.0,0.00010406,2]
[347677604,1736051232018,-500.0,0.00010406,2]
[347677605,1736051232039,-500.0,0.00010406,2]
[347677606,1736051232062,-500.0,0.00010406,2]
[347677607,1736051232084,-500.0,0.00010406,2]
[347677608,1736051232106,-500.0,0.00010406,2]
[347677609,1736051232128,-500.0,0.00010406,2]
[347677610,1736051232150,-500.0,0.00010406,2]
[347677611,1736051232190,-500.0,0.00010406,2]
[347677612,1736051232213,-500.0,0.00010406,2]
[347677613,1736051232239,-500.0,0.00010406,2]
[347677614,1736051232262,-500.0,0.00010406,2]
[347677615,1736051232285,-500.0,0.00010406,2]
[347677616,1736051232307,-500.0,0.00010406,2]
[347677617,1736051232329,-500.0,0.00010406,2]
[347677618,1736051232353,-500.0,0.00010406,2]
[347677619,1736051232376,-500.0,0.00010406,2]
[347677620,1736051232399,-500.0,0.00010406,2]
[347677621,1736051232421,-500.0,0.00010406,2]
[347677622,1736051232444,-500.0,0.00010406,2]
[347677623,1736051232467,-500.0,0.00010406,2]
[347677624,1736051232491,-500.0,0.00010406,2]
[347677625,1736051232514,-500.0,0.00010406,2]
[347677626,1736051232539,-500.0,0.00010406,2]
[347677627,1736051232563,-500.0,0.00010406,2]
[347677628,1736051232587,-500.0,0.00010406,2]
[347677629,1736051232611,-500.0,0.00010406,2]
[347677630,1736051232634,-500.0,0.00010406,2]
[347677631,1736051232658,-500.0,0.00010406,2]
[347677632,1736051232681,-500.0,0.00010406,2]
[347677633,1736051232704,-500.0,0.00010406,2]
[347677634,1736051232727,-500.0,0.00010406,2]
[347677635,1736051232750,-500.0,0.00010406,2]
[347677636,1736051232773,-500.0,0.00010406,2]
[347677637,1736051232797,-500.0,0.00010406,2]
[347677638,1736051232818,-500.0,0.00010406,2]
[347677639,1736051233050,-495.8899782,0.00010406,2]
[347677640,1736051233074,-500.0,0.00010406,2]
[347677641,1736051233095,-500.0,0.00010406,2]
[347677642,1736051233117,-500.0,0.00010406,2]
[347677643,1736051233138,-523.52,0.00010406,2]
[347677644,1736051233159,-500.0,0.00010406,2]
[347677645,1736051233181,-296.21585868,0.00010406,2]
[347677646,1736051233203,-500.0,0.00010406,2]
[347677647,1736051233227,-500.0,0.00010406,2]
[347677648,1736051233248,-500.0,0.00010406,2]
[347677649,1736051233269,-500.0,0.00010406,2]
[347677650,1736051233293,-500.0,0.00010406,2]
[347677651,1736051233314,-500.0,0.00010406,2]
[347677652,1736051233336,-500.0,0.00010406,2]
[347677653,1736051233358,-500.0,0.00010406,2]
[347677654,1736051233380,-500.0,0.00010406,2]
[347677655,1736051233402,-500.0,0.00010406,2]
[347677656,1736051233424,-500.0,0.00010406,2]
[347677657,1736051233446,-500.0,0.00010406,2]
[347677658,1736051233467,-500.0,0.00010406,2]
[347677659,1736051233490,-500.0,0.00010406,2]
[347677660,1736051233513,-500.0,0.00010406,2]
[347677661,1736051233537,-500.0,0.00010406,2]
[347677662,1736051233563,-500.0,0.00010406,2]
[347677663,1736051233586,-500.0,0.00010406,2]
[347677664,1736051233610,-500.0,0.00010406,2]
[347677665,1736051233633,-500.0,0.00010406,2]
[347677666,1736051233656,-500.0,0.00010406,2]
[347677667,1736051233679,-500.0,0.00010406,2]
[347677668,1736051233702,-500.0,0.00010406,2]
[347677669,1736051233724,-500.0,0.00010406,2]
[347677670,1736051233748,-500.0,0.00010406,2]
[347677671,1736051233773,-500.0,0.00010406,2]
[347677672,1736051233798,-500.0,0.00010406,2]
[347677673,1736051233822,-500.0,0.00010406,2]
[347677674,1736051233844,-500.0,0.00010406,2]
[347677675,1736051233866,-500.0,0.00010406,2]
[347677676,1736051233889,-500.0,0.00010406,2]
[347677677,1736051233911,-500.0,0.00010406,2]
[347677678,1736051233934,-841.26,0.00010406,2]
[347677679,1736051233957,-841.26,0.00010406,2]
[347677680,1736051233981,-500.0,0.00010406,2]
[347677681,1736051234004,-500.0,0.00010406,2]
[347677682,1736051234027,-500.0,0.00010406,2]
[347677683,1736051234050,-500.0,0.00010406,2]
[347677684,1736051234073,-500.0,0.00010406,2]
[347677685,1736051234100,-500.0,0.00010406,2]
[347677686,1736051234121,-500.0,0.00010406,2]
[347677687,1736051234145,-500.0,0.00010406,2]
[347677688,1736051234167,-500.0,0.00010406,2]
[347677689,1736051234189,-500.0,0.00010406,2]
[347677690,1736051234212,-500.0,0.00010406,2]
[347677691,1736051234237,-500.0,0.00010406,2]
[347677692,1736051234259,-311.15790541,0.00010406,2]
[347677693,1736051234282,-500.0,0.00010406,2]
[347677694,1736051234306,-1153.38,0.00010406,2]
[347677695,1736051234329,-500.0,0.00010406,2]
[347677696,1736051234351,-500.0,0.00010406,2]
[347677697,1736051234372,-500.0,0.00010406,2]
[347677698,1736051234396,-500.0,0.00010406,2]
[347677699,1736051234418,-500.0,0.00010406,2]
[347677700,1736051234441,-500.0,0.00010406,2]
[347677701,1736051234464,-500.0,0.00010406,2]
[347677702,1736051234486,-500.0,0.00010406,2]
[347677703,1736051234508,-500.0,0.00010406,2]
[347677704,1736051234530,-500.0,0.00010406,2]
[347677705,1736051234552,-520.24,0.00010406,2]
[347677706,1736051234574,-500.0,0.00010406,2]
[347677707,1736051234597,-500.0,0.00010406,2]
[347677708,1736051234620,-760.0,0.00010406,2]
[347677709,1736051234641,-500.0,0.00010406,2]
[347677710,1736051234666,-500.0,0.00010406,2]
[347677711,1736051234699,-500.0,0.00010406,2]
[347677712,1736051234726,-500.0,0.00010406,2]
[347677713,1736051234755,-500.0,0.00010406,2]
[347677714,1736051234786,-500.0,0.00010406,2]
[347677715,1736051234816,-500.0,0.00010406,2]
[347677716,1736051234843,-788.82,0.00010406,2]
[347677717,1736051234871,-500.0,0.00010406,2]
[347677718,1736051234900,-500.0,0.00010406,2]
[347677719,1736051234929,-500.0,0.00010406,2]
[347677720,1736051234958,-500.0,0.00010406,2]
[347677721,1736051234988,-500.0,0.00010406,2]
[347677722,1736051235017,-500.0,0.00010406,2]
[347677723,1736051235049,-500.0,0.00010406,2]
[347677724,1736051235078,-500.0,0.00010406,2]
[347677725,1736051235107,-500.0,0.00010406,2]
[347677726,1736051235138,-500.0,0.00010406,2]
[347677727,1736051235165,-500.0,0.00010406,2]
[347677728,1736051235190,-500.0,0.00010406,2]
[347677729,1736051235219,-500.0,0.00010406,2]
[347677730,1736051235248,-500.0,0.00010406,2]
[347677731,1736051235272,-500.0,0.00010406,2]
[347677732,1736051235302,-500.0,0.00010406,2]
[347677733,1736051235330,-500.0,0.00010406,2]
[347677734,1736051235354,-500.0,0.00010406,2]
[347677735,1736051235380,-500.0,0.00010406,2]
[347677736,1736051235406,-1540.896891,0.00010406,2]
[347677737,1736051235432,-1540.896891,0.00010406,2]
[347677738,1736051235459,-500.0,0.00010406,2]
[347677739,1736051235484,-500.0,0.00010406,2]
[347677740,1736051235511,-500.0,0.00010406,2]
[347677741,1736051235539,-156.453335,0.00010406,2]
[347677742,1736051235568,-500.0,0.00010406,2]
[347677743,1736051235595,-500.0,0.00010406,2]
[347677744,1736051235620,-500.0,0.00010406,2]
[347677745,1736051235646,-500.0,0.00010406,2]
[347677746,1736051235674,-156.573944,0.00010406,2]
[347677747,1736051235702,-500.0,0.00010406,2]
[347677748,1736051235730,-500.0,0.00010406,2]
[347677749,1736051235757,-500.0,0.00010406,2]
[347677750,1736051235785,-500.0,0.00010406,2]
[347677751,1736051235814,-500.0,0.00010406,2]
[347677752,1736051235840,-500.0,0.00010406,2]
[347677753,1736051235866,-500.0,0.00010406,2]
[347677754,1736051235894,-500.0,0.00010406,2]
[347677755,1736051235920,-500.0,0.00010406,2]
[347677756,1736051235946,-500.0,0.00010406,2]
[347677757,1736051235971,-500.0,0.00010406,2]
[347677758,1736051235997,-500.0,0.00010406,2]
[347677759,1736051236023,-500.0,0.00010406,2]
[347677760,1736051236050,-500.0,0.00010406,2]
[347677761,1736051236076,-500.0,0.00010406,2]
[347677762,1736051236102,-500.0,0.00010406,2]
[347677763,1736051236127,-500.0,0.00010406,2]
[347677764,1736051236153,-500.0,0.00010406,2]
[347677765,1736051236179,-500.0,0.00010406,2]
[347677766,1736051236205,-500.0,0.00010406,2]
[347677767,1736051236233,-500.0,0.00010406,2]
[347677768,1736051236259,-500.0,0.00010406,2]
[347677769,1736051236284,-500.0,0.00010406,2]
[347677770,1736051236311,-500.0,0.00010406,2]
[347677771,1736051236337,-500.0,0.00010406,2]
[347677772,1736051236363,-500.0,0.00010406,2]
[347677773,1736051236390,-1863.827328,0.00010406,2]
[347677774,1736051236415,-1863.827328,0.00010406,2]
[347677775,1736051236442,-500.0,0.00010406,2]
[347677776,1736051236467,-500.0,0.00010406,2]
[347677777,1736051236493,-500.0,0.00010406,2]
[347677778,1736051236519,-500.0,0.00010406,2]
[347677779,1736051236547,-470.46644402,0.00010406,2]
[347677780,1736051236799,-1500.71,0.00010406,2]
[347677781,1736051236853,-500.0,0.00010406,2]
[347677782,1736051236876,-500.0,0.00010406,2]
[347677783,1736051236898,-500.0,0.00010406,2]
[347677784,1736051236920,-500.0,0.00010406,2]
[347677785,1736051236942,-500.0,0.00010406,2]
[347677786,1736051236964,-500.0,0.00010406,2]
[347677787,1736051236986,-500.0,0.00010406,2]